{"text_format":"1","workbook":"xlsx","n_sheets":4,"sheets":["عضو 1","عضو 2","عضو 3","رئيس_اللجنة"],"not_rendered":{"charts":0,"images":4,"macros":1,"external_links":0,"defined_names":0,"comments":0,"pivot_tables":0},"unopened":[],"bounds":{"document_bytes":16777216,"sheet_cells":100000,"rows_first":2000,"rows_last":500,"rows_between":2000,"halvings":0,"cell_chars":16384,"cell_head_chars":4096},"cells_cut":0,"cells_raw":0,"read":"whole","date_system":"1900"}

{"sheet":"عضو 1","index":0,"n_rows":36,"n_cols":17,"rows_kept":36,"cut":false,"hidden":false,"merged":[[7,12,8,12],[6,1,6,2],[6,3,6,4],[6,6,6,7],[6,8,6,9],[7,9,7,10],[7,0,7,2],[35,4,35,6],[35,9,35,11],[7,3,7,4],[7,5,7,6],[7,7,7,8],[7,11,8,11]]}
[]
[null,null,null,null,null,null,null,null,null,null,null,null,null,null,"الأولى","جنوب المدينة","ü"]
[null,null,null,null,null,null,null,null,null,null,null,null,null,null,"الثانية","شرق المدينة","û"]
[null,null,null,null,null,null,null,null,null,null,null,null,null,null,"الثالثة","شمال المدينة","ليلي"]
[null,null,null,null,null,null,null,null,null,null,null,null,null,null,"الرابعة","غرب المدينة"]
[null,null,null,null,null,"متابعة عضو لجنة تدقيق بيانات الطلاب - الفصل الدراسي الثاني - العام الدراسي 1439/1440هـ"]
[null,"متابعة تدقيق بيانات  اللجنة  /",null,"الأولى",null,null,"مكتب التعليم /",null,null,null,null,null,null,null,"الخامسة","الحناكية"]
["بيانات الطـــــــــــــــــــــــــــــــــــــلاب",null,null,"النظام الدراسي",null,"ملاحظات 1",null,"ملاحظات 2",null,"طباعة الشهادات",null,"ملاحظات الإدارة","الشهادات المحجوزة",null,"السادسة","بدر"]
["ت","المدرسة","عدد الطلاب","فصلي","مقررات","عدد","نسبة","عدد","نسبة","نعم","لا",null,null,null,null,"خيبر"]
[1,1,100,null,null,50,{"$f":"IF(C10>0,IF(F10>0,100%-(F10/C10),100%),\"\")","v":0.5},10,{"$f":"IF(C10>0,IF(H10>0,100%-(H10/C10),100%),\"\")","v":0.9},null,null,null,null,null,null,"وادي الفرع"]
[2,2,100,null,null,50,0.5,10,0.9]
[null,null,null,null,null,null,{"$f":"IF(C12>0,IF(F12>0,100%-(F12/C12),100%),\"\")","v":""},null,{"$f":"IF(C12>0,IF(H12>0,100%-(H12/C12),100%),\"\")","v":""}]
[null,null,null,null,null,null,"",null,""]
[null,null,null,null,null,null,"",null,""]
[null,null,null,null,null,null,"",null,""]
[null,null,null,null,null,null,"",null,""]
[null,null,null,null,null,null,"",null,""]
[null,null,null,null,null,null,"",null,""]
[null,null,null,null,null,null,"",null,""]
[null,null,null,null,null,null,"",null,""]
[null,null,null,null,null,null,"",null,""]
[null,null,null,null,null,null,"",null,""]
[null,null,null,null,null,null,"",null,""]
[null,null,null,null,null,null,"",null,""]
[null,null,null,null,null,null,"",null,""]
[null,null,null,null,null,null,"",null,""]
[null,null,null,null,null,null,"",null,""]
[null,null,null,null,null,null,"",null,""]
[null,null,null,null,null,null,"",null,""]
[null,null,null,null,null,null,"",null,""]
[null,null,null,null,null,null,"",null,""]
[null,null,null,null,null,null,"",null,""]
[null,null,null,null,null,null,"",null,""]
[null,null,null,null,null,null,"",null,""]
[]
[null,"عضو اللجنة",null,"الاسم /",null,null,null,null,"التوقيع/"]

{"sheet":"عضو 2","index":1,"n_rows":36,"n_cols":17,"rows_kept":36,"cut":false,"hidden":false,"merged":[[7,3,7,4],[7,5,7,6],[7,0,7,2],[7,11,8,11],[7,12,8,12],[35,4,35,6],[35,9,35,11],[6,1,6,2],[6,3,6,4],[6,6,6,7],[6,8,6,9],[7,7,7,8],[7,9,7,10]]}
[]
[null,null,null,null,null,null,null,null,null,null,null,null,null,null,"الأولى","جنوب المدينة","ü"]
[null,null,null,null,null,null,null,null,null,null,null,null,null,null,"الثانية","شرق المدينة","û"]
[null,null,null,null,null,null,null,null,null,null,null,null,null,null,"الثالثة","شمال المدينة","ليلي"]
[null,null,null,null,null,null,null,null,null,null,null,null,null,null,"الرابعة","غرب المدينة"]
[null,null,null,null,null,"متابعة عضو لجنة تدقيق بيانات الطلاب - الفصل الدراسي الثاني - العام الدراسي 1439/1440هـ"]
[null,"متابعة تدقيق بيانات  اللجنة  /",null,"الأولى",null,null,"مكتب التعليم /",null,null,null,null,null,null,null,"الخامسة","الحناكية"]
["بيانات الطـــــــــــــــــــــــــــــــــــــلاب",null,null,"النظام الدراسي",null,"ملاحظات 1",null,"ملاحظات 2",null,"طباعة الشهادات",null,"ملاحظات الإدارة","الشهادات المحجوزة",null,"السادسة","بدر"]
["ت","المدرسة","عدد الطلاب","فصلي","مقررات","عدد","نسبة","عدد","نسبة","نعم","لا",null,null,null,null,"خيبر"]
[1,3,100,null,null,98,{"$f":"IF(C10>0,IF(F10>0,100%-(F10/C10),100%),\"\")","v":2.0000000000000018E-2},10,{"$f":"IF(C10>0,IF(H10>0,100%-(H10/C10),100%),\"\")","v":0.9},null,null,null,null,null,null,"وادي الفرع"]
[2,4,100,null,null,98,2.0000000000000018E-2,10,0.9]
[null,null,null,null,null,null,{"$f":"IF(C12>0,IF(F12>0,100%-(F12/C12),100%),\"\")","v":""},null,{"$f":"IF(C12>0,IF(H12>0,100%-(H12/C12),100%),\"\")","v":""}]
[null,null,null,null,null,null,"",null,""]
[null,null,null,null,null,null,"",null,""]
[null,null,null,null,null,null,"",null,""]
[null,null,null,null,null,null,"",null,""]
[null,null,null,null,null,null,"",null,""]
[null,null,null,null,null,null,"",null,""]
[null,null,null,null,null,null,"",null,""]
[null,null,null,null,null,null,"",null,""]
[null,null,null,null,null,null,"",null,""]
[null,null,null,null,null,null,"",null,""]
[null,null,null,null,null,null,"",null,""]
[null,null,null,null,null,null,"",null,""]
[null,null,null,null,null,null,"",null,""]
[null,null,null,null,null,null,"",null,""]
[null,null,null,null,null,null,"",null,""]
[null,null,null,null,null,null,"",null,""]
[null,null,null,null,null,null,"",null,""]
[null,null,null,null,null,null,"",null,""]
[null,null,null,null,null,null,"",null,""]
[null,null,null,null,null,null,"",null,""]
[null,null,null,null,null,null,"",null,""]
[null,null,null,null,null,null,"",null,""]
[]
[null,"عضو اللجنة",null,"الاسم /",null,null,null,null,"التوقيع/"]

{"sheet":"عضو 3","index":2,"n_rows":36,"n_cols":17,"rows_kept":36,"cut":false,"hidden":false,"merged":[[7,3,7,4],[7,5,7,6],[7,0,7,2],[7,11,8,11],[7,12,8,12],[35,4,35,6],[35,9,35,11],[6,1,6,2],[6,3,6,4],[6,6,6,7],[6,8,6,9],[7,7,7,8],[7,9,7,10]]}
[]
[null,null,null,null,null,null,null,null,null,null,null,null,null,null,"الأولى","جنوب المدينة","ü"]
[null,null,null,null,null,null,null,null,null,null,null,null,null,null,"الثانية","شرق المدينة","û"]
[null,null,null,null,null,null,null,null,null,null,null,null,null,null,"الثالثة","شمال المدينة","ليلي"]
[null,null,null,null,null,null,null,null,null,null,null,null,null,null,"الرابعة","غرب المدينة"]
[null,null,null,null,null,"متابعة عضو لجنة تدقيق بيانات الطلاب - الفصل الدراسي الثاني - العام الدراسي 1439/1440هـ"]
[null,"متابعة تدقيق بيانات  اللجنة  /",null,"الأولى",null,null,"مكتب التعليم /",null,null,null,null,null,null,null,"الخامسة","الحناكية"]
["بيانات الطـــــــــــــــــــــــــــــــــــــلاب",null,null,"النظام الدراسي",null,"ملاحظات 1",null,"ملاحظات 2",null,"طباعة الشهادات",null,"ملاحظات الإدارة","الشهادات المحجوزة",null,"السادسة","بدر"]
["ت","المدرسة","عدد الطلاب","فصلي","مقررات","عدد","نسبة","عدد","نسبة","نعم","لا",null,null,null,null,"خيبر"]
[1,5,100,null,null,70,{"$f":"IF(C10>0,IF(F10>0,100%-(F10/C10),100%),\"\")","v":0.30000000000000004},5,{"$f":"IF(C10>0,IF(H10>0,100%-(H10/C10),100%),\"\")","v":0.95},null,null,null,null,null,null,"وادي الفرع"]
[2,6,100,null,null,70,0.30000000000000004,5,0.95]
[null,null,null,null,null,null,{"$f":"IF(C12>0,IF(F12>0,100%-(F12/C12),100%),\"\")","v":""},null,{"$f":"IF(C12>0,IF(H12>0,100%-(H12/C12),100%),\"\")","v":""}]
[null,null,null,null,null,null,"",null,""]
[null,null,null,null,null,null,"",null,""]
[null,null,null,null,null,null,"",null,""]
[null,null,null,null,null,null,"",null,""]
[null,null,null,null,null,null,"",null,""]
[null,null,null,null,null,null,"",null,""]
[null,null,null,null,null,null,"",null,""]
[null,null,null,null,null,null,"",null,""]
[null,null,null,null,null,null,"",null,""]
[null,null,null,null,null,null,"",null,""]
[null,null,null,null,null,null,"",null,""]
[null,null,null,null,null,null,"",null,""]
[null,null,null,null,null,null,"",null,""]
[null,null,null,null,null,null,"",null,""]
[null,null,null,null,null,null,"",null,""]
[null,null,null,null,null,null,"",null,""]
[null,null,null,null,null,null,"",null,""]
[null,null,null,null,null,null,"",null,""]
[null,null,null,null,null,null,"",null,""]
[null,null,null,null,null,null,"",null,""]
[null,null,null,null,null,null,"",null,""]
[null,null,null,null,null,null,"",null,""]
[]
[null,"عضو اللجنة",null,"الاسم /",null,null,null,null,"التوقيع/"]

{"sheet":"رئيس_اللجنة","index":3,"n_rows":81,"n_cols":17,"rows_kept":81,"cut":false,"hidden":false,"merged":[[7,11,8,11],[7,12,8,12],[7,13,7,14],[37,4,37,6],[37,9,37,11],[6,1,6,2],[6,3,6,4],[6,6,6,7],[6,8,6,9],[7,3,7,4],[7,5,7,6],[7,7,7,8],[7,9,7,10],[7,0,7,2]]}
[]
[]
[]
[]
[]
[null,null,null,null,null,"متابعة رئيس لجنة تدقيق بيانات الطلاب - الفصل الدراسي الثاني - العام الدراسي 1439/1440هـ"]
[null,"متابعة تدقيق بيانات  اللجنة  /",null,"الأولى",null,null,"مكتب التعليم /"]
["بيانات الطـــــــــــــــــــــــــــــــــــــلاب",null,null,"النظام الدراسي",null,"ملاحظات 1",null,"ملاحظات 2",null,"طباعة الشهادات",null,"ملاحظات الإدارة","الشهادات المحجوزة","متابعة الإرسال"]
["ت","المدرسة","عدد الطلاب","فصلي","مقررات","عدد","نسبة","عدد","نسبة","نعم","لا",null,null,1,2]
[1,1,100,null,null,50,{"$f":"IF(C10>0,IF(F10>0,100%-(F10/C10),100%),\"\")","v":0.5},10,{"$f":"IF(C10>0,IF(H10>0,100%-(H10/C10),100%),\"\")","v":0.9},null,null,null,null,null,null,null,"المطلوب /"]
[2,2,100,null,null,50,0.5,10,0.9,null,null,null,null,null,null,null,"استيراد البيانات من الصفحات ( عضو 1 + عضو 2 + عضو 3 ) لصفحة رئيس اللجنة"]
[1,3,100,null,null,98,{"$f":"IF(C12>0,IF(F12>0,100%-(F12/C12),100%),\"\")","v":2.0000000000000018E-2},10,{"$f":"IF(C12>0,IF(H12>0,100%-(H12/C12),100%),\"\")","v":0.9},null,null,null,null,null,null,null,"بشكل متتالي"]
[2,4,100,null,null,98,2.0000000000000018E-2,10,0.9]
[1,5,100,null,null,70,{"$f":"IF(C14>0,IF(F14>0,100%-(F14/C14),100%),\"\")","v":0.30000000000000004},5,{"$f":"IF(C14>0,IF(H14>0,100%-(H14/C14),100%),\"\")","v":0.95}]
[2,6,100,null,null,70,0.30000000000000004,5,0.95]
[]
[]
[]
[]
[]
[]
[]
[]
[]
[]
[]
[]
[]
[]
[]
[]
[]
[]
[]
[]
[]
[]
[]
[]
[]
[]
[]
[]
[]
[]
[]
[]
[]
[]
[]
[]
[]
[]
[]
[]
[]
[]
[]
[]
[]
[]
[]
[]
[]
[]
[]
[]
[]
[]
[]
[]
[]
[]
[]
[]
[]
[null,null,null,null,null,null,""]
[null,null,null,null,null,null,""]
[null,null,null,null,null,null,""]
[null,null,null,null,null,null,""]
[null,null,null,null,null,null,""]